Workbook

Sheet Chart
L1: Marching Band Chart Generator | S1: Set: | T1: 4 | X1: Movement to View: | Y1: 2
C7: Field Outline | F7: Full Length | G7: 120 | H7: yards
C8: x | D8: y | F8: Width | G8: =160/3 -> 53.33333333 | H8: yards
C9: -60 | D9: =-HalfWid -> -26.66666667 | F9: Full Length/2 | G9: =LengthYds/2 -> 60 | H9: yards
C10: -60 | D10: =HalfWid -> 26.66666667 | F10: Width/2 | G10: =WidthYds/2 -> 26.66666667 | H10: yards
C11: =-C10 -> 60 | D11: =HalfWid -> 26.66666667
C12: =C11 -> 60 | D12: =-HalfWid -> -26.66666667
C13: =C9 -> -60 | D13: =-HalfWid -> -26.66666667
I14: Yardage Markers
C15: Yard Lines | F15: x | G15: y | I15: Visitor Numbers | J15: X-Value | K15: Y-Value
C16: -50 | D16: =HalfWid -> 26.66666667 | F16: 5 | G16: =-HalfWid -> -26.66666667 | I16: 10 | J16: -39.8 | K16: =-HalfWid+8 -> -18.66666667
C17: -50 | D17: =-HalfWid -> -26.66666667 | F17: 5 | G17: =HalfWid -> 26.66666667 | I17: 20 | J17: -29.9 | K17: -18.66666667
C18: -45 | D18: =-HalfWid -> -26.66666667 | F18: 10 | G18: =HalfWid -> 26.66666667 | I18: 30 | J18: -19.9 | K18: -18.66666667
C19: -45 | D19: =HalfWid -> 26.66666667 | F19: 10 | G19: =-HalfWid -> -26.66666667 | I19: 40 | J19: -9.9 | K19: -18.66666667
C20: =-40 -> -40 | D20: =HalfWid -> 26.66666667 | F20: 15 | G20: =-HalfWid -> -26.66666667 | I20: 50 | J20: =I20-50 -> 0 | K20: -18.66666667
C21: -40 | D21: =-HalfWid -> -26.66666667 | F21: 15 | G21: =HalfWid -> 26.66666667 | I21: 40 | J21: 10.1 | K21: -18.66666667
C22: -35 | D22: =-HalfWid -> -26.66666667 | F22: 20 | G22: =HalfWid -> 26.66666667 | I22: 30 | J22: 20.1 | K22: -18.66666667
C23: -35 | D23: =HalfWid -> 26.66666667 | F23: 20 | G23: =-HalfWid -> -26.66666667 | I23: 20 | J23: 30.1 | K23: -18.66666667
C24: -30 | D24: =HalfWid -> 26.66666667 | F24: 25 | G24: =-HalfWid -> -26.66666667 | I24: 10 | J24: 40.2 | K24: -18.66666667
C25: -30 | D25: =-HalfWid -> -26.66666667 | F25: 25 | G25: =HalfWid -> 26.66666667 | I25: Tops are 9 yards from edge
C26: -25 | D26: =-HalfWid -> -26.66666667 | F26: 30 | G26: =HalfWid -> 26.66666667 | I26: Six Feet High
C27: -25 | D27: =HalfWid -> 26.66666667 | F27: 30 | G27: =-HalfWid -> -26.66666667 | I27: Vertical Center is 8 yards from edge
C28: -20 | D28: =HalfWid -> 26.66666667 | F28: 35 | G28: =-HalfWid -> -26.66666667
C29: -20 | D29: =-HalfWid -> -26.66666667 | F29: 35 | G29: =HalfWid -> 26.66666667 | I29: Darker 50-Yd Line
C30: -15 | D30: =-HalfWid -> -26.66666667 | F30: 40 | G30: =HalfWid -> 26.66666667 | I30: x | J30: y
C31: -15 | D31: =HalfWid -> 26.66666667 | F31: 40 | G31: =-HalfWid -> -26.66666667 | I31: 0 | J31: =HalfWid -> 26.66666667
C32: -10 | D32: =HalfWid -> 26.66666667 | F32: 45 | G32: =-HalfWid -> -26.66666667 | I32: 0 | J32: =-HalfWid -> -26.66666667
C33: -10 | D33: =-HalfWid -> -26.66666667 | F33: 45 | G33: =HalfWid -> 26.66666667
C34: -5 | D34: =-HalfWid -> -26.66666667 | F34: 50 | G34: =HalfWid -> 26.66666667 | I34: Movement Label
C35: -5 | D35: =HalfWid -> 26.66666667 | F35: 50 | G35: =-HalfWid -> -26.66666667 | I35: =" ** Movement " & MoveChart & " **" -> ** Movement 2 **
C36: 0 | D36: =HalfWid -> 26.66666667 | I36: x | J36: y
C37: 0 | D37: =-HalfWid -> -26.66666667 | I37: 43 | J37: 22
C39: Hash Marks | D39: 2 Sets 4 Inches from Edge | G39: Hash Length | H39: 2 | I39: Feet
C40: 2 Feet Long | D40: 2 Sets 60 Feet from Edge | H40: =2/3 -> 0.6666666667 | I40: Yards | L40: Marcher's Path | AE40: L | AF40: M | AG40: N | AH40: O | AI40: P | AJ40: Q | AY40: x | BA40: y
L41: Movement | N41: 1 | AE41: NbrPts: | AF41: =VLOOKUP(FALSE,AE43:AF67,2,FALSE)-1 -> 18 | AO41: L/R | AT41: V/H | BA41: Alt-X | BC41: Alt-y
C42: Audience Edge | E42: Audience Middle | G42: Opposite Middle | I42: Opposite Edge | L42: Data | M42: Set | N42: Move | O42: L/R | P42: L/R Location | Q42: Visitor/Home Loc. | AE42: Data | AF42: Set | AG42: Move | AH42: L/R | AI42: L/R Location | AJ42: Visitor/Home Loc. | AM42: Steps Err | AN42: L/R Mult | AO42: L/R Steps | AP42: In/Out | AQ42: Yd Ln | AR42: Steps Err | AS42: V/H Steps | AT42: Frnt/Bhnd | AU42: Vis/Home | AV42: Line/Hash | AX42: L/R Yds | AY42: L/R | AZ42: V/H Yds | BA42: V/H | BC42: L/R Alt
C43: =HalfWid-(0.5) -> 26.16666667 | D43: =C43-H40 -> 25.5 | E43: =HalfWid-(60/3) -> 6.666666667 | F43: =AMS+H40 -> 7.333333333 | G43: =-HalfWid+(60/3) -> -6.666666667 | H43: =OMS-H40 -> -7.333333333 | I43: =-HalfWid+0.5 -> -26.16666667 | J43: =OES+H40 -> -25.5 | L43: =IF(N43<>"",TRUE,FALSE) -> TRUE | M43: 1 | N43: 0 | O43: Left | P43: 4.0 stps inside 35 yd ln | Q43: 8.0 stps behind Home side line | AD43: 0 | AE43: =INDIRECT(AE$40&VLOOKUP(MoveChart,MoveLookup,2)+$AD43) -> TRUE | AF43: =INDIRECT(AF$40&VLOOKUP(MoveChart,MoveLookup,2)+$AD43) -> 1 | AG43: =INDIRECT(AG$40&VLOOKUP(MoveChart,MoveLookup,2)+$AD43) -> 0 | AH43: =INDIRECT(AH$40&VLOOKUP(MoveChart,MoveLookup,2)+$AD43) -> Right | AI43: =INDIRECT(AI$40&VLOOKUP(MoveChart,MoveLookup,2)+$AD43) -> 1.5 stps outside 40 yd ln | AJ43: =INDIRECT(AJ$40&VLOOKUP(MoveChart,MoveLookup,2)+$AD43) -> on Home hash (HS) | AM43: =IF(AE43,ISERR(FIND("stps",AI43)),"") -> FALSE | AN43: =IF(AE43,IF(AH43="Right",-1,1),"") -> -1 | AO43: =IF(AE43,IF(NOT(AM43),1*LEFT(AI43,FIND("stp",AI43)-1),0),"") -> 1.5 | AP43: =IF(AE43,IF(NOT(AM43),IF(NOT(ISERR(FIND("inside",AI43))),1,-1),1),"") -> -1 | AQ43: =IF(AE43,MID(AI43,FIND("yd ln",AI43)-3,2),"") -> 40 | AR43: =IF(AE43,ISERR(FIND("stps",AJ43)),"") -> TRUE | AS43: =IF(AE43,IF(NOT(AR43),1*LEFT(AJ43,FIND("stp",AJ43)-1),0),"") -> 0 | AT43: =IF(AE43,IF(NOT(AR43),IF(ISERR(FIND("behind",AJ43)),1, -1),1),"") -> 1 | AU43: =IF(AE43,IF(ISERR(FIND("Home",AJ43)),"Visitor", "Home"),"") -> Home | AV43: =IF(AE43,IF(ISERR(FIND("hash",AJ43)), "Line", "Hash"),"") -> Hash | AW43: =AF43 -> 1 | AX43: =IF(AE43,AO43*(5/8),"") -> 0.9375 | AY43: =IF(AE43,AN43*(50-(AQ43+AX43*AP43)),NA()) -> -10.9375 | AZ43: =IF(AE43,AT43*AS43*(5/8),"") -> 0 | BA43: =IF(AE43,IF(AU43="Home",IF(AV43="Hash",AMS,HalfWid),IF(AV43="Hash",OMS,-HalfWid))+AZ43,NA()) -> 6.666666667 | BC43: =IF(AE43,-AY43, NA()) -> 10.9375
C44: -49 | D44: =AES -> 26.16666667 | E44: -49 | F44: =AMS -> 6.666666667 | G44: -49 | H44: =OMS -> -6.666666667 | I44: -49 | J44: =OES -> -26.16666667 | L44: =IF(N44<>"",TRUE,FALSE) -> FALSE | M44: =M43+1 -> 2 | AD44: =AD43+1 -> 1 | AE44: =INDIRECT(AE$40&VLOOKUP(MoveChart,MoveLookup,2)+$AD44) -> TRUE | AF44: =INDIRECT(AF$40&VLOOKUP(MoveChart,MoveLookup,2)+$AD44) -> 2 | AG44: =INDIRECT(AG$40&VLOOKUP(MoveChart,MoveLookup,2)+$AD44) -> 28 | AH44: =INDIRECT(AH$40&VLOOKUP(MoveChart,MoveLookup,2)+$AD44) -> Right | AI44: =INDIRECT(AI$40&VLOOKUP(MoveChart,MoveLookup,2)+$AD44) -> 1.5 stps outside 40 yd ln | AJ44: =INDIRECT(AJ$40&VLOOKUP(MoveChart,MoveLookup,2)+$AD44) -> on Home hash (HS) | AM44: =IF(AE44,ISERR(FIND("stps",AI44)),"") -> FALSE | AN44: =IF(AE44,IF(AH44="Right",-1,1),"") -> -1 | AO44: =IF(AE44,IF(NOT(AM44),1*LEFT(AI44,FIND("stp",AI44)-1),0),"") -> 1.5 | AP44: =IF(AE44,IF(NOT(AM44),IF(NOT(ISERR(FIND("inside",AI44))),1,-1),1),"") -> -1 | AQ44: =IF(AE44,MID(AI44,FIND("yd ln",AI44)-3,2),"") -> 40 | AR44: =IF(AE44,ISERR(FIND("stps",AJ44)),"") -> TRUE | AS44: =IF(AE44,IF(NOT(AR44),1*LEFT(AJ44,FIND("stp",AJ44)-1),0),"") -> 0 | AT44: =IF(AE44,IF(NOT(AR44),IF(ISERR(FIND("behind",AJ44)),1, -1),1),"") -> 1 | AU44: =IF(AE44,IF(ISERR(FIND("Home",AJ44)),"Visitor", "Home"),"") -> Home | AV44: =IF(AE44,IF(ISERR(FIND("hash",AJ44)), "Line", "Hash"),"") -> Hash | AW44: =AF44 -> 2 | AX44: =IF(AE44,AO44*(5/8),"") -> 0.9375 | AY44: -10.9375 | AZ44: =IF(AE44,AT44*AS44*(5/8),"") -> 0 | BA44: =IF(AE44,IF(AU44="Home",IF(AV44="Hash",AMS,HalfWid),IF(AV44="Hash",OMS,-HalfWid))+AZ44,NA()) -> 6.666666667 | BC44: =IF(AE44,-AY44, NA()) -> 10.9375
C45: =C44 -> -49 | D45: =AEE -> 25.5 | E45: =E44 -> -49 | F45: =AME -> 7.333333333 | G45: =G44 -> -49 | H45: =OME -> -7.333333333 | I45: =I44 -> -49 | J45: =OEE -> -25.5 | L45: FALSE | M45: =M44+1 -> 3 | AD45: =AD44+1 -> 2 | AE45: =INDIRECT(AE$40&VLOOKUP(MoveChart,MoveLookup,2)+$AD45) -> TRUE | AF45: =INDIRECT(AF$40&VLOOKUP(MoveChart,MoveLookup,2)+$AD45) -> 3 | AG45: =INDIRECT(AG$40&VLOOKUP(MoveChart,MoveLookup,2)+$AD45) -> 20 | AH45: =INDIRECT(AH$40&VLOOKUP(MoveChart,MoveLookup,2)+$AD45) -> Right | AI45: =INDIRECT(AI$40&VLOOKUP(MoveChart,MoveLookup,2)+$AD45) -> 1.5 stps outside 40 yd ln | AJ45: =INDIRECT(AJ$40&VLOOKUP(MoveChart,MoveLookup,2)+$AD45) -> on Home hash (HS) | AM45: FALSE | AN45: -1 | AO45: 1.5 | AP45: -1 | AQ45: 40 | AR45: TRUE | AS45: 0 | AT45: 1 | AU45: Home | AV45: Hash | AW45: 3 | AX45: 0.9375 | AY45: -10.9375 | AZ45: 0 | BA45: =IF(AE45,IF(AU45="Home",IF(AV45="Hash",AMS,HalfWid),IF(AV45="Hash",OMS,-HalfWid))+AZ45,NA()) -> 6.666666667 | BC45: 10.9375
L46: FALSE | M46: 4 | AD46: 3 | AE46: =INDIRECT(AE$40&VLOOKUP(MoveChart,MoveLookup,2)+$AD46) -> TRUE | AF46: =INDIRECT(AF$40&VLOOKUP(MoveChart,MoveLookup,2)+$AD46) -> 4 | AG46: =INDIRECT(AG$40&VLOOKUP(MoveChart,MoveLookup,2)+$AD46) -> 16 | AH46: =INDIRECT(AH$40&VLOOKUP(MoveChart,MoveLookup,2)+$AD46) -> Right | AI46: =INDIRECT(AI$40&VLOOKUP(MoveChart,MoveLookup,2)+$AD46) -> 3.5 stps inside 40 yd ln | AJ46: =INDIRECT(AJ$40&VLOOKUP(MoveChart,MoveLookup,2)+$AD46) -> 12.25 stps in frnt of Home hash (HS) | AM46: FALSE | AN46: -1 | AO46: 3.5 | AP46: 1 | AQ46: 40 | AR46: FALSE | AS46: 12.25 | AT46: 1 | AU46: Home | AV46: Hash | AW46: 4 | AX46: 2.1875 | AY46: -7.8125 | AZ46: 7.65625 | BA46: =IF(AE46,IF(AU46="Home",IF(AV46="Hash",AMS,HalfWid),IF(AV46="Hash",OMS,-HalfWid))+AZ46,NA()) -> 14.32291667 | BC46: 7.8125
C47: =C45+1 -> -48 | D47: =AES -> 26.16666667 | E47: =E45+1 -> -48 | F47: =AMS -> 6.666666667 | G47: =G45+1 -> -48 | H47: =OMS -> -6.666666667 | I47: =I45+1 -> -48 | J47: =OES -> -26.16666667 | L47: FALSE | M47: 5 | AD47: 4 | AE47: =INDIRECT(AE$40&VLOOKUP(MoveChart,MoveLookup,2)+$AD47) -> TRUE | AF47: =INDIRECT(AF$40&VLOOKUP(MoveChart,MoveLookup,2)+$AD47) -> 5 | AG47: =INDIRECT(AG$40&VLOOKUP(MoveChart,MoveLookup,2)+$AD47) -> 16 | AH47: =INDIRECT(AH$40&VLOOKUP(MoveChart,MoveLookup,2)+$AD47) -> Right | AI47: =INDIRECT(AI$40&VLOOKUP(MoveChart,MoveLookup,2)+$AD47) -> 2.0 stps outside 35 yd ln | AJ47: =INDIRECT(AJ$40&VLOOKUP(MoveChart,MoveLookup,2)+$AD47) -> 6.0 stps behind Home side line | AM47: FALSE | AN47: -1 | AO47: 2 | AP47: -1 | AQ47: 35 | AR47: FALSE | AS47: 6 | AT47: -1 | AU47: Home | AV47: Line | AW47: 5 | AX47: 1.25 | AY47: -16.25 | AZ47: -3.75 | BA47: =IF(AE47,IF(AU47="Home",IF(AV47="Hash",AMS,HalfWid),IF(AV47="Hash",OMS,-HalfWid))+AZ47,NA()) -> 22.91666667 | BC47: 16.25
C48: =C47 -> -48 | D48: =AEE -> 25.5 | E48: =E47 -> -48 | F48: =AME -> 7.333333333 | G48: =G47 -> -48 | H48: =OME -> -7.333333333 | I48: =I47 -> -48 | J48: =OEE -> -25.5 | L48: FALSE | M48: 6 | AD48: 5 | AE48: =INDIRECT(AE$40&VLOOKUP(MoveChart,MoveLookup,2)+$AD48) -> TRUE | AF48: =INDIRECT(AF$40&VLOOKUP(MoveChart,MoveLookup,2)+$AD48) -> 6 | AG48: =INDIRECT(AG$40&VLOOKUP(MoveChart,MoveLookup,2)+$AD48) -> 16 | AH48: =INDIRECT(AH$40&VLOOKUP(MoveChart,MoveLookup,2)+$AD48) -> Right | AI48: =INDIRECT(AI$40&VLOOKUP(MoveChart,MoveLookup,2)+$AD48) -> On 35 yd ln | AJ48: =INDIRECT(AJ$40&VLOOKUP(MoveChart,MoveLookup,2)+$AD48) -> 12.0 stps in frnt of Home hash | AM48: TRUE | AN48: -1 | AO48: 0 | AP48: 1 | AQ48: 35 | AR48: FALSE | AS48: 12 | AT48: 1 | AU48: Home | AV48: Hash | AW48: 6 | AX48: 0 | AY48: -15 | AZ48: 7.5 | BA48: =IF(AE48,IF(AU48="Home",IF(AV48="Hash",AMS,HalfWid),IF(AV48="Hash",OMS,-HalfWid))+AZ48,NA()) -> 14.16666667 | BC48: 15
L49: FALSE | M49: 7 | AD49: 6 | AE49: =INDIRECT(AE$40&VLOOKUP(MoveChart,MoveLookup,2)+$AD49) -> TRUE | AF49: =INDIRECT(AF$40&VLOOKUP(MoveChart,MoveLookup,2)+$AD49) -> 7 | AG49: =INDIRECT(AG$40&VLOOKUP(MoveChart,MoveLookup,2)+$AD49) -> 8 | AH49: =INDIRECT(AH$40&VLOOKUP(MoveChart,MoveLookup,2)+$AD49) -> Right | AI49: =INDIRECT(AI$40&VLOOKUP(MoveChart,MoveLookup,2)+$AD49) -> On 30 yd ln | AJ49: =INDIRECT(AJ$40&VLOOKUP(MoveChart,MoveLookup,2)+$AD49) -> 4.0 stps in frnt of Home hash | AM49: TRUE | AN49: -1 | AO49: 0 | AP49: 1 | AQ49: 30 | AR49: FALSE | AS49: 4 | AT49: 1 | AU49: Home | AV49: Hash | AW49: 7 | AX49: 0 | AY49: -20 | AZ49: 2.5 | BA49: =IF(AE49,IF(AU49="Home",IF(AV49="Hash",AMS,HalfWid),IF(AV49="Hash",OMS,-HalfWid))+AZ49,NA()) -> 9.166666667 | BC49: 20
C50: =C48+1 -> -47 | D50: =AES -> 26.16666667 | E50: =E48+1 -> -47 | F50: =AMS -> 6.666666667 | G50: =G48+1 -> -47 | H50: =OMS -> -6.666666667 | I50: =I48+1 -> -47 | J50: =OES -> -26.16666667 | L50: FALSE | M50: 8 | AD50: 7 | AE50: =INDIRECT(AE$40&VLOOKUP(MoveChart,MoveLookup,2)+$AD50) -> TRUE | AF50: =INDIRECT(AF$40&VLOOKUP(MoveChart,MoveLookup,2)+$AD50) -> 8 | AG50: =INDIRECT(AG$40&VLOOKUP(MoveChart,MoveLookup,2)+$AD50) -> 8 | AH50: =INDIRECT(AH$40&VLOOKUP(MoveChart,MoveLookup,2)+$AD50) -> Right | AI50: =INDIRECT(AI$40&VLOOKUP(MoveChart,MoveLookup,2)+$AD50) -> On 25 yd ln | AJ50: =INDIRECT(AJ$40&VLOOKUP(MoveChart,MoveLookup,2)+$AD50) -> 4.0 stps in frnt of Home hash | AM50: TRUE | AN50: -1 | AO50: 0 | AP50: 1 | AQ50: 25 | AR50: FALSE | AS50: 4 | AT50: 1 | AU50: Home | AV50: Hash | AW50: 8 | AX50: 0 | AY50: -25 | AZ50: 2.5 | BA50: =IF(AE50,IF(AU50="Home",IF(AV50="Hash",AMS,HalfWid),IF(AV50="Hash",OMS,-HalfWid))+AZ50,NA()) -> 9.166666667 | BC50: 25
C51: =C50 -> -47 | D51: =AEE -> 25.5 | E51: =E50 -> -47 | F51: =AME -> 7.333333333 | G51: =G50 -> -47 | H51: =OME -> -7.333333333 | I51: =I50 -> -47 | J51: =OEE -> -25.5 | L51: FALSE | M51: 9 | AD51: 8 | AE51: =INDIRECT(AE$40&VLOOKUP(MoveChart,MoveLookup,2)+$AD51) -> TRUE | AF51: =INDIRECT(AF$40&VLOOKUP(MoveChart,MoveLookup,2)+$AD51) -> 9 | AG51: =INDIRECT(AG$40&VLOOKUP(MoveChart,MoveLookup,2)+$AD51) -> 8 | AH51: =INDIRECT(AH$40&VLOOKUP(MoveChart,MoveLookup,2)+$AD51) -> Right | AI51: =INDIRECT(AI$40&VLOOKUP(MoveChart,MoveLookup,2)+$AD51) -> On 20 yd ln | AJ51: =INDIRECT(AJ$40&VLOOKUP(MoveChart,MoveLookup,2)+$AD51) -> 4.0 stps in frnt of Home hash | AM51: TRUE | AN51: -1 | AO51: 0 | AP51: 1 | AQ51: 20 | AR51: FALSE | AS51: 4 | AT51: 1 | AU51: Home | AV51: Hash | AW51: 9 | AX51: 0 | AY51: -30 | AZ51: 2.5 | BA51: =IF(AE51,IF(AU51="Home",IF(AV51="Hash",AMS,HalfWid),IF(AV51="Hash",OMS,-HalfWid))+AZ51,NA()) -> 9.166666667 | BC51: 30
L52: FALSE | M52: 10 | AD52: 9 | AE52: =INDIRECT(AE$40&VLOOKUP(MoveChart,MoveLookup,2)+$AD52) -> TRUE | AF52: =INDIRECT(AF$40&VLOOKUP(MoveChart,MoveLookup,2)+$AD52) -> 10 | AG52: =INDIRECT(AG$40&VLOOKUP(MoveChart,MoveLookup,2)+$AD52) -> 8 | AH52: =INDIRECT(AH$40&VLOOKUP(MoveChart,MoveLookup,2)+$AD52) -> Right | AI52: =INDIRECT(AI$40&VLOOKUP(MoveChart,MoveLookup,2)+$AD52) -> 4.0 stps outside 25 yd ln | AJ52: =INDIRECT(AJ$40&VLOOKUP(MoveChart,MoveLookup,2)+$AD52) -> 17.0 stps in front of Home hash | AM52: FALSE | AN52: -1 | AO52: 4 | AP52: -1 | AQ52: 25 | AR52: FALSE | AS52: 17 | AT52: 1 | AU52: Home | AV52: Hash | AW52: 10 | AX52: 2.5 | AY52: -27.5 | AZ52: 10.625 | BA52: =IF(AE52,IF(AU52="Home",IF(AV52="Hash",AMS,HalfWid),IF(AV52="Hash",OMS,-HalfWid))+AZ52,NA()) -> 17.29166667 | BC52: 27.5
C53: =C51+1 -> -46 | D53: =AES -> 26.16666667 | E53: =E51+1 -> -46 | F53: =AMS -> 6.666666667 | G53: =G51+1 -> -46 | H53: =OMS -> -6.666666667 | I53: =I51+1 -> -46 | J53: =OES -> -26.16666667 | L53: FALSE | M53: 11 | AD53: 10 | AE53: =INDIRECT(AE$40&VLOOKUP(MoveChart,MoveLookup,2)+$AD53) -> TRUE | AF53: =INDIRECT(AF$40&VLOOKUP(MoveChart,MoveLookup,2)+$AD53) -> 11 | AG53: =INDIRECT(AG$40&VLOOKUP(MoveChart,MoveLookup,2)+$AD53) -> 16 | AH53: =INDIRECT(AH$40&VLOOKUP(MoveChart,MoveLookup,2)+$AD53) -> Right | AI53: =INDIRECT(AI$40&VLOOKUP(MoveChart,MoveLookup,2)+$AD53) -> On 30 yd ln | AJ53: =INDIRECT(AJ$40&VLOOKUP(MoveChart,MoveLookup,2)+$AD53) -> 2.0 stps in front of Home hash | AM53: TRUE | AN53: -1 | AO53: 0 | AP53: 1 | AQ53: 30 | AR53: FALSE | AS53: 2 | AT53: 1 | AU53: Home | AV53: Hash | AW53: 11 | AX53: 0 | AY53: -20 | AZ53: 1.25 | BA53: =IF(AE53,IF(AU53="Home",IF(AV53="Hash",AMS,HalfWid),IF(AV53="Hash",OMS,-HalfWid))+AZ53,NA()) -> 7.916666667 | BC53: 20
C54: =C53 -> -46 | D54: =AEE -> 25.5 | E54: =E53 -> -46 | F54: =AME -> 7.333333333 | G54: =G53 -> -46 | H54: =OME -> -7.333333333 | I54: =I53 -> -46 | J54: =OEE -> -25.5 | L54: FALSE | M54: 12 | AD54: 11 | AE54: =INDIRECT(AE$40&VLOOKUP(MoveChart,MoveLookup,2)+$AD54) -> TRUE | AF54: =INDIRECT(AF$40&VLOOKUP(MoveChart,MoveLookup,2)+$AD54) -> 12 | AG54: =INDIRECT(AG$40&VLOOKUP(MoveChart,MoveLookup,2)+$AD54) -> 32 | AH54: =INDIRECT(AH$40&VLOOKUP(MoveChart,MoveLookup,2)+$AD54) -> Right | AI54: =INDIRECT(AI$40&VLOOKUP(MoveChart,MoveLookup,2)+$AD54) -> 4.0 stps outside 35 yd ln | AJ54: =INDIRECT(AJ$40&VLOOKUP(MoveChart,MoveLookup,2)+$AD54) -> 4.0 stps in frnt of Home hash | AM54: FALSE | AN54: -1 | AO54: 4 | AP54: -1 | AQ54: 35 | AR54: FALSE | AS54: 4 | AT54: 1 | AU54: Home | AV54: Hash | AW54: 12 | AX54: 2.5 | AY54: -17.5 | AZ54: 2.5 | BA54: =IF(AE54,IF(AU54="Home",IF(AV54="Hash",AMS,HalfWid),IF(AV54="Hash",OMS,-HalfWid))+AZ54,NA()) -> 9.166666667 | BC54: 17.5
L55: FALSE | M55: 13 | AD55: 12 | AE55: =INDIRECT(AE$40&VLOOKUP(MoveChart,MoveLookup,2)+$AD55) -> TRUE | AF55: =INDIRECT(AF$40&VLOOKUP(MoveChart,MoveLookup,2)+$AD55) -> 13 | AG55: =INDIRECT(AG$40&VLOOKUP(MoveChart,MoveLookup,2)+$AD55) -> 32 | AH55: =INDIRECT(AH$40&VLOOKUP(MoveChart,MoveLookup,2)+$AD55) -> Right | AI55: =INDIRECT(AI$40&VLOOKUP(MoveChart,MoveLookup,2)+$AD55) -> 3.0 stps inside 35 yd ln | AJ55: =INDIRECT(AJ$40&VLOOKUP(MoveChart,MoveLookup,2)+$AD55) -> 10.0 stps behind Home side line | AM55: FALSE | AN55: -1 | AO55: 3 | AP55: 1 | AQ55: 35 | AR55: FALSE | AS55: 10 | AT55: -1 | AU55: Home | AV55: Line | AW55: 13 | AX55: 1.875 | AY55: -13.125 | AZ55: -6.25 | BA55: =IF(AE55,IF(AU55="Home",IF(AV55="Hash",AMS,HalfWid),IF(AV55="Hash",OMS,-HalfWid))+AZ55,NA()) -> 20.41666667 | BC55: 13.125
C56: =C54+2 -> -44 | D56: =AES -> 26.16666667 | E56: =E54+2 -> -44 | F56: =AMS -> 6.666666667 | G56: =G54+2 -> -44 | H56: =OMS -> -6.666666667 | I56: =I54+2 -> -44 | J56: =OES -> -26.16666667 | L56: FALSE | M56: 14 | AD56: 13 | AE56: =INDIRECT(AE$40&VLOOKUP(MoveChart,MoveLookup,2)+$AD56) -> TRUE | AF56: =INDIRECT(AF$40&VLOOKUP(MoveChart,MoveLookup,2)+$AD56) -> 14 | AG56: =INDIRECT(AG$40&VLOOKUP(MoveChart,MoveLookup,2)+$AD56) -> 16 | AH56: =INDIRECT(AH$40&VLOOKUP(MoveChart,MoveLookup,2)+$AD56) -> Right | AI56: =INDIRECT(AI$40&VLOOKUP(MoveChart,MoveLookup,2)+$AD56) -> 2.5 stps outside 45 yd ln | AJ56: =INDIRECT(AJ$40&VLOOKUP(MoveChart,MoveLookup,2)+$AD56) -> 11.0 stps in frnt of Home hash | AM56: FALSE | AN56: -1 | AO56: 2.5 | AP56: -1 | AQ56: 45 | AR56: FALSE | AS56: 11 | AT56: 1 | AU56: Home | AV56: Hash | AW56: 14 | AX56: 1.5625 | AY56: -6.5625 | AZ56: 6.875 | BA56: =IF(AE56,IF(AU56="Home",IF(AV56="Hash",AMS,HalfWid),IF(AV56="Hash",OMS,-HalfWid))+AZ56,NA()) -> 13.54166667 | BC56: 6.5625
C57: =C56 -> -44 | D57: =AEE -> 25.5 | E57: =E56 -> -44 | F57: =AME -> 7.333333333 | G57: =G56 -> -44 | H57: =OME -> -7.333333333 | I57: =I56 -> -44 | J57: =OEE -> -25.5 | L57: FALSE | M57: 15 | AD57: 14 | AE57: =INDIRECT(AE$40&VLOOKUP(MoveChart,MoveLookup,2)+$AD57) -> TRUE | AF57: =INDIRECT(AF$40&VLOOKUP(MoveChart,MoveLookup,2)+$AD57) -> 15 | AG57: =INDIRECT(AG$40&VLOOKUP(MoveChart,MoveLookup,2)+$AD57) -> 8 | AH57: =INDIRECT(AH$40&VLOOKUP(MoveChart,MoveLookup,2)+$AD57) -> Right | AI57: =INDIRECT(AI$40&VLOOKUP(MoveChart,MoveLookup,2)+$AD57) -> 3.25 stps outside 40 yd ln | AJ57: =INDIRECT(AJ$40&VLOOKUP(MoveChart,MoveLookup,2)+$AD57) -> 9.25 stps in frnt of Home hash | AM57: FALSE | AN57: -1 | AO57: 3.25 | AP57: -1 | AQ57: 40 | AR57: FALSE | AS57: 9.25 | AT57: 1 | AU57: Home | AV57: Hash | AW57: 15 | AX57: 2.03125 | AY57: -12.03125 | AZ57: 5.78125 | BA57: =IF(AE57,IF(AU57="Home",IF(AV57="Hash",AMS,HalfWid),IF(AV57="Hash",OMS,-HalfWid))+AZ57,NA()) -> 12.44791667 | BC57: 12.03125
L58: FALSE | M58: 16 | AD58: 15 | AE58: =INDIRECT(AE$40&VLOOKUP(MoveChart,MoveLookup,2)+$AD58) -> TRUE | AF58: =INDIRECT(AF$40&VLOOKUP(MoveChart,MoveLookup,2)+$AD58) -> 16 | AG58: =INDIRECT(AG$40&VLOOKUP(MoveChart,MoveLookup,2)+$AD58) -> 12 | AH58: =INDIRECT(AH$40&VLOOKUP(MoveChart,MoveLookup,2)+$AD58) -> Right | AI58: =INDIRECT(AI$40&VLOOKUP(MoveChart,MoveLookup,2)+$AD58) -> 4.0 stps outside 35 yd ln | AJ58: =INDIRECT(AJ$40&VLOOKUP(MoveChart,MoveLookup,2)+$AD58) -> 6.0 stps in frnt of Home hash | AM58: FALSE | AN58: -1 | AO58: 4 | AP58: -1 | AQ58: 35 | AR58: FALSE | AS58: 6 | AT58: 1 | AU58: Home | AV58: Hash | AW58: 16 | AX58: 2.5 | AY58: -17.5 | AZ58: 3.75 | BA58: =IF(AE58,IF(AU58="Home",IF(AV58="Hash",AMS,HalfWid),IF(AV58="Hash",OMS,-HalfWid))+AZ58,NA()) -> 10.41666667 | BC58: 17.5
C59: =C57+1 -> -43 | D59: =AES -> 26.16666667 | E59: =E57+1 -> -43 | F59: =AMS -> 6.666666667 | G59: =G57+1 -> -43 | H59: =OMS -> -6.666666667 | I59: =I57+1 -> -43 | J59: =OES -> -26.16666667 | L59: FALSE | M59: 17 | AD59: 16 | AE59: =INDIRECT(AE$40&VLOOKUP(MoveChart,MoveLookup,2)+$AD59) -> TRUE | AF59: =INDIRECT(AF$40&VLOOKUP(MoveChart,MoveLookup,2)+$AD59) -> 17 | AG59: =INDIRECT(AG$40&VLOOKUP(MoveChart,MoveLookup,2)+$AD59) -> 8 | AH59: =INDIRECT(AH$40&VLOOKUP(MoveChart,MoveLookup,2)+$AD59) -> Right | AI59: =INDIRECT(AI$40&VLOOKUP(MoveChart,MoveLookup,2)+$AD59) -> 2.0 stps inside 30 yd ln | AJ59: =INDIRECT(AJ$40&VLOOKUP(MoveChart,MoveLookup,2)+$AD59) -> 12.0 stps in frnt of Home hash | AM59: FALSE | AN59: -1 | AO59: 2 | AP59: 1 | AQ59: 30 | AR59: FALSE | AS59: 12 | AT59: 1 | AU59: Home | AV59: Hash | AW59: 17 | AX59: 1.25 | AY59: -18.75 | AZ59: 7.5 | BA59: =IF(AE59,IF(AU59="Home",IF(AV59="Hash",AMS,HalfWid),IF(AV59="Hash",OMS,-HalfWid))+AZ59,NA()) -> 14.16666667 | BC59: 18.75
C60: =C59 -> -43 | D60: =AEE -> 25.5 | E60: =E59 -> -43 | F60: =AME -> 7.333333333 | G60: =G59 -> -43 | H60: =OME -> -7.333333333 | I60: =I59 -> -43 | J60: =OEE -> -25.5 | L60: FALSE | M60: 18 | AD60: 17 | AE60: =INDIRECT(AE$40&VLOOKUP(MoveChart,MoveLookup,2)+$AD60) -> TRUE | AF60: =INDIRECT(AF$40&VLOOKUP(MoveChart,MoveLookup,2)+$AD60) -> 18 | AG60: =INDIRECT(AG$40&VLOOKUP(MoveChart,MoveLookup,2)+$AD60) -> 15 | AH60: =INDIRECT(AH$40&VLOOKUP(MoveChart,MoveLookup,2)+$AD60) -> Right | AI60: =INDIRECT(AI$40&VLOOKUP(MoveChart,MoveLookup,2)+$AD60) -> 2.0 stps inside 35 yd ln | AJ60: =INDIRECT(AJ$40&VLOOKUP(MoveChart,MoveLookup,2)+$AD60) -> 12.0 stps in frnt of Home hash | AM60: FALSE | AN60: -1 | AO60: 2 | AP60: 1 | AQ60: 35 | AR60: FALSE | AS60: 12 | AT60: 1 | AU60: Home | AV60: Hash | AW60: 18 | AX60: 1.25 | AY60: -13.75 | AZ60: 7.5 | BA60: =IF(AE60,IF(AU60="Home",IF(AV60="Hash",AMS,HalfWid),IF(AV60="Hash",OMS,-HalfWid))+AZ60,NA()) -> 14.16666667 | BC60: 13.75
L61: FALSE | M61: 19 | AD61: 18 | AE61: =INDIRECT(AE$40&VLOOKUP(MoveChart,MoveLookup,2)+$AD61) -> FALSE | AF61: =INDIRECT(AF$40&VLOOKUP(MoveChart,MoveLookup,2)+$AD61) -> 19 | AG61: =INDIRECT(AG$40&VLOOKUP(MoveChart,MoveLookup,2)+$AD61) -> 0 | AH61: =INDIRECT(AH$40&VLOOKUP(MoveChart,MoveLookup,2)+$AD61) -> 0 | AI61: =INDIRECT(AI$40&VLOOKUP(MoveChart,MoveLookup,2)+$AD61) -> 0 | AJ61: =INDIRECT(AJ$40&VLOOKUP(MoveChart,MoveLookup,2)+$AD61) -> 0 | AW61: 19 | AY61: =IF(AE61,AN61*(50-(AQ61+AX61*AP61)),NA()) ->  | BA61: =IF(AE61,IF(AU61="Home",IF(AV61="Hash",AMS,HalfWid),IF(AV61="Hash",OMS,-HalfWid))+AZ61,NA()) -> 
C62: =C60+1 -> -42 | D62: =AES -> 26.16666667 | E62: =E60+1 -> -42 | F62: =AMS -> 6.666666667 | G62: =G60+1 -> -42 | H62: =OMS -> -6.666666667 | I62: =I60+1 -> -42 | J62: =OES -> -26.16666667 | L62: FALSE | M62: 20 | AD62: 19 | AE62: =INDIRECT(AE$40&VLOOKUP(MoveChart,MoveLookup,2)+$AD62) -> FALSE | AF62: =INDIRECT(AF$40&VLOOKUP(MoveChart,MoveLookup,2)+$AD62) -> 20 | AG62: =INDIRECT(AG$40&VLOOKUP(MoveChart,MoveLookup,2)+$AD62) -> 0 | AH62: =INDIRECT(AH$40&VLOOKUP(MoveChart,MoveLookup,2)+$AD62) -> 0 | AI62: =INDIRECT(AI$40&VLOOKUP(MoveChart,MoveLookup,2)+$AD62) -> 0 | AJ62: =INDIRECT(AJ$40&VLOOKUP(MoveChart,MoveLookup,2)+$AD62) -> 0 | AW62: 20 | AY62: =IF(AE62,AN62*(50-(AQ62+AX62*AP62)),NA()) ->  | BA62: =IF(AE62,IF(AU62="Home",IF(AV62="Hash",AMS,HalfWid),IF(AV62="Hash",OMS,-HalfWid))+AZ62,NA()) -> 
C63: =C62 -> -42 | D63: =AEE -> 25.5 | E63: =E62 -> -42 | F63: =AME -> 7.333333333 | G63: =G62 -> -42 | H63: =OME -> -7.333333333 | I63: =I62 -> -42 | J63: =OEE -> -25.5 | L63: FALSE | M63: 21 | AD63: 20 | AE63: =INDIRECT(AE$40&VLOOKUP(MoveChart,MoveLookup,2)+$AD63) -> FALSE | AF63: =INDIRECT(AF$40&VLOOKUP(MoveChart,MoveLookup,2)+$AD63) -> 21 | AG63: =INDIRECT(AG$40&VLOOKUP(MoveChart,MoveLookup,2)+$AD63) -> 0 | AH63: =INDIRECT(AH$40&VLOOKUP(MoveChart,MoveLookup,2)+$AD63) -> 0 | AI63: =INDIRECT(AI$40&VLOOKUP(MoveChart,MoveLookup,2)+$AD63) -> 0 | AJ63: =INDIRECT(AJ$40&VLOOKUP(MoveChart,MoveLookup,2)+$AD63) -> 0 | AW63: 21 | BA63: =IF(AE63,IF(AU63="Home",IF(AV63="Hash",AMS,HalfWid),IF(AV63="Hash",OMS,-HalfWid))+AZ63,NA()) -> 
L64: FALSE | M64: 22 | AD64: 21 | AE64: =INDIRECT(AE$40&VLOOKUP(MoveChart,MoveLookup,2)+$AD64) -> FALSE | AF64: =INDIRECT(AF$40&VLOOKUP(MoveChart,MoveLookup,2)+$AD64) -> 22 | AG64: =INDIRECT(AG$40&VLOOKUP(MoveChart,MoveLookup,2)+$AD64) -> 0 | AH64: =INDIRECT(AH$40&VLOOKUP(MoveChart,MoveLookup,2)+$AD64) -> 0 | AI64: =INDIRECT(AI$40&VLOOKUP(MoveChart,MoveLookup,2)+$AD64) -> 0 | AJ64: =INDIRECT(AJ$40&VLOOKUP(MoveChart,MoveLookup,2)+$AD64) -> 0 | AW64: 22 | BA64: =IF(AE64,IF(AU64="Home",IF(AV64="Hash",AMS,HalfWid),IF(AV64="Hash",OMS,-HalfWid))+AZ64,NA()) -> 
C65: =C63+1 -> -41 | D65: =AES -> 26.16666667 | E65: =E63+1 -> -41 | F65: =AMS -> 6.666666667 | G65: =G63+1 -> -41 | H65: =OMS -> -6.666666667 | I65: =I63+1 -> -41 | J65: =OES -> -26.16666667 | L65: FALSE | M65: 23 | AD65: 22 | AE65: =INDIRECT(AE$40&VLOOKUP(MoveChart,MoveLookup,2)+$AD65) -> FALSE | AF65: =INDIRECT(AF$40&VLOOKUP(MoveChart,MoveLookup,2)+$AD65) -> 23 | AG65: =INDIRECT(AG$40&VLOOKUP(MoveChart,MoveLookup,2)+$AD65) -> 0 | AH65: =INDIRECT(AH$40&VLOOKUP(MoveChart,MoveLookup,2)+$AD65) -> 0 | AI65: =INDIRECT(AI$40&VLOOKUP(MoveChart,MoveLookup,2)+$AD65) -> 0 | AJ65: =INDIRECT(AJ$40&VLOOKUP(MoveChart,MoveLookup,2)+$AD65) -> 0 | AW65: 23 | BA65: =IF(AE65,IF(AU65="Home",IF(AV65="Hash",AMS,HalfWid),IF(AV65="Hash",OMS,-HalfWid))+AZ65,NA()) -> 
C66: =C65 -> -41 | D66: =AEE -> 25.5 | E66: =E65 -> -41 | F66: =AME -> 7.333333333 | G66: =G65 -> -41 | H66: =OME -> -7.333333333 | I66: =I65 -> -41 | J66: =OEE -> -25.5 | L66: FALSE | M66: 24 | AD66: 23 | AE66: =INDIRECT(AE$40&VLOOKUP(MoveChart,MoveLookup,2)+$AD66) -> FALSE | AF66: =INDIRECT(AF$40&VLOOKUP(MoveChart,MoveLookup,2)+$AD66) -> 24 | AG66: =INDIRECT(AG$40&VLOOKUP(MoveChart,MoveLookup,2)+$AD66) -> 0 | AH66: =INDIRECT(AH$40&VLOOKUP(MoveChart,MoveLookup,2)+$AD66) -> 0 | AI66: =INDIRECT(AI$40&VLOOKUP(MoveChart,MoveLookup,2)+$AD66) -> 0 | AJ66: =INDIRECT(AJ$40&VLOOKUP(MoveChart,MoveLookup,2)+$AD66) -> 0 | AW66: 24 | BA66: =IF(AE66,IF(AU66="Home",IF(AV66="Hash",AMS,HalfWid),IF(AV66="Hash",OMS,-HalfWid))+AZ66,NA()) -> 
L67: FALSE | M67: 25 | AD67: 24 | AE67: =INDIRECT(AE$40&VLOOKUP(MoveChart,MoveLookup,2)+$AD67) -> FALSE | AF67: =INDIRECT(AF$40&VLOOKUP(MoveChart,MoveLookup,2)+$AD67) -> 25 | AG67: =INDIRECT(AG$40&VLOOKUP(MoveChart,MoveLookup,2)+$AD67) -> 0 | AH67: =INDIRECT(AH$40&VLOOKUP(MoveChart,MoveLookup,2)+$AD67) -> 0 | AI67: =INDIRECT(AI$40&VLOOKUP(MoveChart,MoveLookup,2)+$AD67) -> 0 | AJ67: =INDIRECT(AJ$40&VLOOKUP(MoveChart,MoveLookup,2)+$AD67) -> 0 | AW67: 25 | BA67: =IF(AE67,IF(AU67="Home",IF(AV67="Hash",AMS,HalfWid),IF(AV67="Hash",OMS,-HalfWid))+AZ67,NA()) -> 
C68: =C66+2 -> -39 | D68: =AES -> 26.16666667 | E68: =E66+2 -> -39 | F68: =AMS -> 6.666666667 | G68: =G66+2 -> -39 | H68: =OMS -> -6.666666667 | I68: =I66+2 -> -39 | J68: =OES -> -26.16666667 | L68: =L41 -> Movement | N68: =N41+1 -> 2 | AW68: Set: | AY68: =VLOOKUP(CurrSet,AW43:AY67,3,FALSE) -> -7.8125 | BA68: =VLOOKUP(CurrSet,AW43:BA67,5,FALSE) -> 14.32291667
C69: =C68 -> -39 | D69: =AEE -> 25.5 | E69: =E68 -> -39 | F69: =AME -> 7.333333333 | G69: =G68 -> -39 | H69: =OME -> -7.333333333 | I69: =I68 -> -39 | J69: =OEE -> -25.5 | L69: =IF(N69<>"",TRUE,FALSE) -> TRUE | M69: 1 | N69: 0 | O69: Right | P69: 1.5 stps outside 40 yd ln | Q69: on Home hash (HS) | AY69: =VLOOKUP(CurrSet+1,AW43:AY67,3,FALSE) -> -16.25 | BA69: =VLOOKUP(CurrSet+1,AW43:BA67,5,FALSE) -> 22.91666667
L70: =IF(N70<>"",TRUE,FALSE) -> TRUE | M70: =M69+1 -> 2 | N70: 28 | O70: Right | P70: 1.5 stps outside 40 yd ln | Q70: on Home hash (HS) | AE70: Movement Lookup Table
C71: =C69+1 -> -38 | D71: =AES -> 26.16666667 | E71: =E69+1 -> -38 | F71: =AMS -> 6.666666667 | G71: =G69+1 -> -38 | H71: =OMS -> -6.666666667 | I71: =I69+1 -> -38 | J71: =OES -> -26.16666667 | L71: TRUE | M71: 3 | N71: 20 | O71: Right | P71: 1.5 stps outside 40 yd ln | Q71: on Home hash (HS) | AE71: Movmnt | AF71: Start Row
C72: =C71 -> -38 | D72: =AEE -> 25.5 | E72: =E71 -> -38 | F72: =AME -> 7.333333333 | G72: =G71 -> -38 | H72: =OME -> -7.333333333 | I72: =I71 -> -38 | J72: =OEE -> -25.5 | L72: TRUE | M72: 4 | N72: 16 | O72: Right | P72: 3.5 stps inside 40 yd ln | Q72: 12.25 stps in frnt of Home hash (HS) | AE72: 1 | AF72: 43
L73: TRUE | M73: 5 | N73: 16 | O73: Right | P73: 2.0 stps outside 35 yd ln | Q73: 6.0 stps behind Home side line | AE73: 2 | AF73: 69
C74: =C72+1 -> -37 | D74: =AES -> 26.16666667 | E74: =E72+1 -> -37 | F74: =AMS -> 6.666666667 | G74: =G72+1 -> -37 | H74: =OMS -> -6.666666667 | I74: =I72+1 -> -37 | J74: =OES -> -26.16666667 | L74: TRUE | M74: 6 | N74: 16 | O74: Right | P74: On 35 yd ln | Q74: 12.0 stps in frnt of Home hash | AE74: 3 | AF74: =AF73+26 -> 95
C75: =C74 -> -37 | D75: =AEE -> 25.5 | E75: =E74 -> -37 | F75: =AME -> 7.333333333 | G75: =G74 -> -37 | H75: =OME -> -7.333333333 | I75: =I74 -> -37 | J75: =OEE -> -25.5 | L75: TRUE | M75: 7 | N75: 8 | O75: Right | P75: On 30 yd ln | Q75: 4.0 stps in frnt of Home hash | AE75: 4 | AF75: =AF74+26 -> 121
L76: TRUE | M76: 8 | N76: 8 | O76: Right | P76: On 25 yd ln | Q76: 4.0 stps in frnt of Home hash | AE76: 5 | AF76: 147
C77: =C75+1 -> -36 | D77: =AES -> 26.16666667 | E77: =E75+1 -> -36 | F77: =AMS -> 6.666666667 | G77: =G75+1 -> -36 | H77: =OMS -> -6.666666667 | I77: =I75+1 -> -36 | J77: =OES -> -26.16666667 | L77: TRUE | M77: 9 | N77: 8 | O77: Right | P77: On 20 yd ln | Q77: 4.0 stps in frnt of Home hash | AE77: 6 | AF77: 173
C78: =C77 -> -36 | D78: =AEE -> 25.5 | E78: =E77 -> -36 | F78: =AME -> 7.333333333 | G78: =G77 -> -36 | H78: =OME -> -7.333333333 | I78: =I77 -> -36 | J78: =OEE -> -25.5 | L78: TRUE | M78: 10 | N78: 8 | O78: Right | P78: 4.0 stps outside 25 yd ln | Q78: 17.0 stps in front of Home hash | AE78: 7 | AF78: 199
L79: TRUE | M79: 11 | N79: 16 | O79: Right | P79: On 30 yd ln | Q79: 2.0 stps in front of Home hash | AE79: 8 | AF79: 225
C80: =C78+2 -> -34 | D80: =AES -> 26.16666667 | E80: =E78+2 -> -34 | F80: =AMS -> 6.666666667 | G80: =G78+2 -> -34 | H80: =OMS -> -6.666666667 | I80: =I78+2 -> -34 | J80: =OES -> -26.16666667 | L80: TRUE | M80: 12 | N80: 32 | O80: Right | P80: 4.0 stps outside 35 yd ln | Q80: 4.0 stps in frnt of Home hash | AE80: 9 | AF80: 251
C81: =C80 -> -34 | D81: =AEE -> 25.5 | E81: =E80 -> -34 | F81: =AME -> 7.333333333 | G81: =G80 -> -34 | H81: =OME -> -7.333333333 | I81: =I80 -> -34 | J81: =OEE -> -25.5 | L81: TRUE | M81: 13 | N81: 32 | O81: Right | P81: 3.0 stps inside 35 yd ln | Q81: 10.0 stps behind Home side line | AE81: 10 | AF81: 277
L82: TRUE | M82: 14 | N82: 16 | O82: Right | P82: 2.5 stps outside 45 yd ln | Q82: 11.0 stps in frnt of Home hash
C83: =C81+1 -> -33 | D83: =AES -> 26.16666667 | E83: =E81+1 -> -33 | F83: =AMS -> 6.666666667 | G83: =G81+1 -> -33 | H83: =OMS -> -6.666666667 | I83: =I81+1 -> -33 | J83: =OES -> -26.16666667 | L83: TRUE | M83: 15 | N83: 8 | O83: Right | P83: 3.25 stps outside 40 yd ln | Q83: 9.25 stps in frnt of Home hash
C84: =C83 -> -33 | D84: =AEE -> 25.5 | E84: =E83 -> -33 | F84: =AME -> 7.333333333 | G84: =G83 -> -33 | H84: =OME -> -7.333333333 | I84: =I83 -> -33 | J84: =OEE -> -25.5 | L84: TRUE | M84: 16 | N84: 12 | O84: Right | P84: 4.0 stps outside 35 yd ln | Q84: 6.0 stps in frnt of Home hash
L85: TRUE | M85: 17 | N85: 8 | O85: Right | P85: 2.0 stps inside 30 yd ln | Q85: 12.0 stps in frnt of Home hash
C86: =C84+1 -> -32 | D86: =AES -> 26.16666667 | E86: =E84+1 -> -32 | F86: =AMS -> 6.666666667 | G86: =G84+1 -> -32 | H86: =OMS -> -6.666666667 | I86: =I84+1 -> -32 | J86: =OES -> -26.16666667 | L86: TRUE | M86: 18 | N86: 15 | O86: Right | P86: 2.0 stps inside 35 yd ln | Q86: 12.0 stps in frnt of Home hash
C87: =C86 -> -32 | D87: =AEE -> 25.5 | E87: =E86 -> -32 | F87: =AME -> 7.333333333 | G87: =G86 -> -32 | H87: =OME -> -7.333333333 | I87: =I86 -> -32 | J87: =OEE -> -25.5 | L87: FALSE | M87: 19
L88: FALSE | M88: 20
C89: =C87+1 -> -31 | D89: =AES -> 26.16666667 | E89: =E87+1 -> -31 | F89: =AMS -> 6.666666667 | G89: =G87+1 -> -31 | H89: =OMS -> -6.666666667 | I89: =I87+1 -> -31 | J89: =OES -> -26.16666667 | L89: FALSE | M89: 21
C90: =C89 -> -31 | D90: =AEE -> 25.5 | E90: =E89 -> -31 | F90: =AME -> 7.333333333 | G90: =G89 -> -31 | H90: =OME -> -7.333333333 | I90: =I89 -> -31 | J90: =OEE -> -25.5 | L90: FALSE | M90: 22
L91: FALSE | M91: 23
C92: =C90+2 -> -29 | D92: =AES -> 26.16666667 | E92: =E90+2 -> -29 | F92: =AMS -> 6.666666667 | G92: =G90+2 -> -29 | H92: =OMS -> -6.666666667 | I92: =I90+2 -> -29 | J92: =OES -> -26.16666667 | L92: FALSE | M92: 24
C93: =C92 -> -29 | D93: =AEE -> 25.5 | E93: =E92 -> -29 | F93: =AME -> 7.333333333 | G93: =G92 -> -29 | H93: =OME -> -7.333333333 | I93: =I92 -> -29 | J93: =OEE -> -25.5 | L93: FALSE | M93: 25
L94: =L68 -> Movement | N94: =N68+1 -> 3
C95: =C93+1 -> -28 | D95: =AES -> 26.16666667 | E95: =E93+1 -> -28 | F95: =AMS -> 6.666666667 | G95: =G93+1 -> -28 | H95: =OMS -> -6.666666667 | I95: =I93+1 -> -28 | J95: =OES -> -26.16666667 | L95: =IF(N95<>"",TRUE,FALSE) -> FALSE | M95: 1
C96: =C95 -> -28 | D96: =AEE -> 25.5 | E96: =E95 -> -28 | F96: =AME -> 7.333333333 | G96: =G95 -> -28 | H96: =OME -> -7.333333333 | I96: =I95 -> -28 | J96: =OEE -> -25.5 | L96: =IF(N96<>"",TRUE,FALSE) -> FALSE | M96: =M95+1 -> 2
L97: FALSE | M97: 3
C98: =C96+1 -> -27 | D98: =AES -> 26.16666667 | E98: =E96+1 -> -27 | F98: =AMS -> 6.666666667 | G98: =G96+1 -> -27 | H98: =OMS -> -6.666666667 | I98: =I96+1 -> -27 | J98: =OES -> -26.16666667 | L98: FALSE | M98: 4
C99: =C98 -> -27 | D99: =AEE -> 25.5 | E99: =E98 -> -27 | F99: =AME -> 7.333333333 | G99: =G98 -> -27 | H99: =OME -> -7.333333333 | I99: =I98 -> -27 | J99: =OEE -> -25.5 | L99: FALSE | M99: 5
L100: FALSE | M100: 6
C101: =C99+1 -> -26 | D101: =AES -> 26.16666667 | E101: =E99+1 -> -26 | F101: =AMS -> 6.666666667 | G101: =G99+1 -> -26 | H101: =OMS -> -6.666666667 | I101: =I99+1 -> -26 | J101: =OES -> -26.16666667 | L101: FALSE | M101: 7
C102: =C101 -> -26 | D102: =AEE -> 25.5 | E102: =E101 -> -26 | F102: =AME -> 7.333333333 | G102: =G101 -> -26 | H102: =OME -> -7.333333333 | I102: =I101 -> -26 | J102: =OEE -> -25.5 | L102: FALSE | M102: 8
L103: FALSE | M103: 9
C104: =C102+2 -> -24 | D104: =AES -> 26.16666667 | E104: =E102+2 -> -24 | F104: =AMS -> 6.666666667 | G104: =G102+2 -> -24 | H104: =OMS -> -6.666666667 | I104: =I102+2 -> -24 | J104: =OES -> -26.16666667 | L104: FALSE | M104: 10
C105: =C104 -> -24 | D105: =AEE -> 25.5 | E105: =E104 -> -24 | F105: =AME -> 7.333333333 | G105: =G104 -> -24 | H105: =OME -> -7.333333333 | I105: =I104 -> -24 | J105: =OEE -> -25.5 | L105: FALSE | M105: 11
L106: FALSE | M106: 12
C107: =C105+1 -> -23 | D107: =AES -> 26.16666667 | E107: =E105+1 -> -23 | F107: =AMS -> 6.666666667 | G107: =G105+1 -> -23 | H107: =OMS -> -6.666666667 | I107: =I105+1 -> -23 | J107: =OES -> -26.16666667 | L107: FALSE | M107: 13
C108: =C107 -> -23 | D108: =AEE -> 25.5 | E108: =E107 -> -23 | F108: =AME -> 7.333333333 | G108: =G107 -> -23 | H108: =OME -> -7.333333333 | I108: =I107 -> -23 | J108: =OEE -> -25.5 | L108: FALSE | M108: 14
L109: FALSE | M109: 15
C110: =C108+1 -> -22 | D110: =AES -> 26.16666667 | E110: =E108+1 -> -22 | F110: =AMS -> 6.666666667 | G110: =G108+1 -> -22 | H110: =OMS -> -6.666666667 | I110: =I108+1 -> -22 | J110: =OES -> -26.16666667 | L110: FALSE | M110: 16
C111: =C110 -> -22 | D111: =AEE -> 25.5 | E111: =E110 -> -22 | F111: =AME -> 7.333333333 | G111: =G110 -> -22 | H111: =OME -> -7.333333333 | I111: =I110 -> -22 | J111: =OEE -> -25.5 | L111: FALSE | M111: 17
L112: FALSE | M112: 18
C113: =C111+1 -> -21 | D113: =AES -> 26.16666667 | E113: =E111+1 -> -21 | F113: =AMS -> 6.666666667 | G113: =G111+1 -> -21 | H113: =OMS -> -6.666666667 | I113: =I111+1 -> -21 | J113: =OES -> -26.16666667 | L113: FALSE | M113: 19
C114: =C113 -> -21 | D114: =AEE -> 25.5 | E114: =E113 -> -21 | F114: =AME -> 7.333333333 | G114: =G113 -> -21 | H114: =OME -> -7.333333333 | I114: =I113 -> -21 | J114: =OEE -> -25.5 | L114: FALSE | M114: 20
L115: FALSE | M115: 21
C116: =C114+2 -> -19 | D116: =AES -> 26.16666667 | E116: =E114+2 -> -19 | F116: =AMS -> 6.666666667 | G116: =G114+2 -> -19 | H116: =OMS -> -6.666666667 | I116: =I114+2 -> -19 | J116: =OES -> -26.16666667 | L116: FALSE | M116: 22
C117: =C116 -> -19 | D117: =AEE -> 25.5 | E117: =E116 -> -19 | F117: =AME -> 7.333333333 | G117: =G116 -> -19 | H117: =OME -> -7.333333333 | I117: =I116 -> -19 | J117: =OEE -> -25.5 | L117: FALSE | M117: 23
L118: FALSE | M118: 24
C119: =C117+1 -> -18 | D119: =AES -> 26.16666667 | E119: =E117+1 -> -18 | F119: =AMS -> 6.666666667 | G119: =G117+1 -> -18 | H119: =OMS -> -6.666666667 | I119: =I117+1 -> -18 | J119: =OES -> -26.16666667 | L119: FALSE | M119: 25
C120: =C119 -> -18 | D120: =AEE -> 25.5 | E120: =E119 -> -18 | F120: =AME -> 7.333333333 | G120: =G119 -> -18 | H120: =OME -> -7.333333333 | I120: =I119 -> -18 | J120: =OEE -> -25.5 | L120: =L94 -> Movement | N120: =N94+1 -> 4
L121: =IF(N121<>"",TRUE,FALSE) -> FALSE | M121: 1
C122: =C120+1 -> -17 | D122: =AES -> 26.16666667 | E122: =E120+1 -> -17 | F122: =AMS -> 6.666666667 | G122: =G120+1 -> -17 | H122: =OMS -> -6.666666667 | I122: =I120+1 -> -17 | J122: =OES -> -26.16666667 | L122: =IF(N122<>"",TRUE,FALSE) -> FALSE | M122: =M121+1 -> 2
C123: =C122 -> -17 | D123: =AEE -> 25.5 | E123: =E122 -> -17 | F123: =AME -> 7.333333333 | G123: =G122 -> -17 | H123: =OME -> -7.333333333 | I123: =I122 -> -17 | J123: =OEE -> -25.5 | L123: FALSE | M123: 3
L124: FALSE | M124: 4
C125: =C123+1 -> -16 | D125: =AES -> 26.16666667 | E125: =E123+1 -> -16 | F125: =AMS -> 6.666666667 | G125: =G123+1 -> -16 | H125: =OMS -> -6.666666667 | I125: =I123+1 -> -16 | J125: =OES -> -26.16666667 | L125: FALSE | M125: 5
C126: =C125 -> -16 | D126: =AEE -> 25.5 | E126: =E125 -> -16 | F126: =AME -> 7.333333333 | G126: =G125 -> -16 | H126: =OME -> -7.333333333 | I126: =I125 -> -16 | J126: =OEE -> -25.5 | L126: FALSE | M126: 6
L127: FALSE | M127: 7
C128: =C126+2 -> -14 | D128: =AES -> 26.16666667 | E128: =E126+2 -> -14 | F128: =AMS -> 6.666666667 | G128: =G126+2 -> -14 | H128: =OMS -> -6.666666667 | I128: =I126+2 -> -14 | J128: =OES -> -26.16666667 | L128: FALSE | M128: 8
C129: =C128 -> -14 | D129: =AEE -> 25.5 | E129: =E128 -> -14 | F129: =AME -> 7.333333333 | G129: =G128 -> -14 | H129: =OME -> -7.333333333 | I129: =I128 -> -14 | J129: =OEE -> -25.5 | L129: FALSE | M129: 9
L130: FALSE | M130: 10
C131: =C129+1 -> -13 | D131: =AES -> 26.16666667 | E131: =E129+1 -> -13 | F131: =AMS -> 6.666666667 | G131: =G129+1 -> -13 | H131: =OMS -> -6.666666667 | I131: =I129+1 -> -13 | J131: =OES -> -26.16666667 | L131: FALSE | M131: 11
C132: =C131 -> -13 | D132: =AEE -> 25.5 | E132: =E131 -> -13 | F132: =AME -> 7.333333333 | G132: =G131 -> -13 | H132: =OME -> -7.333333333 | I132: =I131 -> -13 | J132: =OEE -> -25.5 | L132: FALSE | M132: 12
L133: FALSE | M133: 13
C134: =C132+1 -> -12 | D134: =AES -> 26.16666667 | E134: =E132+1 -> -12 | F134: =AMS -> 6.666666667 | G134: =G132+1 -> -12 | H134: =OMS -> -6.666666667 | I134: =I132+1 -> -12 | J134: =OES -> -26.16666667 | L134: FALSE | M134: 14
C135: =C134 -> -12 | D135: =AEE -> 25.5 | E135: =E134 -> -12 | F135: =AME -> 7.333333333 | G135: =G134 -> -12 | H135: =OME -> -7.333333333 | I135: =I134 -> -12 | J135: =OEE -> -25.5 | L135: FALSE | M135: 15
L136: FALSE | M136: 16
C137: =C135+1 -> -11 | D137: =AES -> 26.16666667 | E137: =E135+1 -> -11 | F137: =AMS -> 6.666666667 | G137: =G135+1 -> -11 | H137: =OMS -> -6.666666667 | I137: =I135+1 -> -11 | J137: =OES -> -26.16666667 | L137: FALSE | M137: 17
C138: =C137 -> -11 | D138: =AEE -> 25.5 | E138: =E137 -> -11 | F138: =AME -> 7.333333333 | G138: =G137 -> -11 | H138: =OME -> -7.333333333 | I138: =I137 -> -11 | J138: =OEE -> -25.5 | L138: FALSE | M138: 18
L139: FALSE | M139: 19
C140: =C138+2 -> -9 | D140: =AES -> 26.16666667 | E140: =E138+2 -> -9 | F140: =AMS -> 6.666666667 | G140: =G138+2 -> -9 | H140: =OMS -> -6.666666667 | I140: =I138+2 -> -9 | J140: =OES -> -26.16666667 | L140: FALSE | M140: 20
C141: =C140 -> -9 | D141: =AEE -> 25.5 | E141: =E140 -> -9 | F141: =AME -> 7.333333333 | G141: =G140 -> -9 | H141: =OME -> -7.333333333 | I141: =I140 -> -9 | J141: =OEE -> -25.5 | L141: FALSE | M141: 21
L142: FALSE | M142: 22
C143: =C141+1 -> -8 | D143: =AES -> 26.16666667 | E143: =E141+1 -> -8 | F143: =AMS -> 6.666666667 | G143: =G141+1 -> -8 | H143: =OMS -> -6.666666667 | I143: =I141+1 -> -8 | J143: =OES -> -26.16666667 | L143: FALSE | M143: 23
C144: =C143 -> -8 | D144: =AEE -> 25.5 | E144: =E143 -> -8 | F144: =AME -> 7.333333333 | G144: =G143 -> -8 | H144: =OME -> -7.333333333 | I144: =I143 -> -8 | J144: =OEE -> -25.5 | L144: FALSE | M144: 24
L145: FALSE | M145: 25
C146: =C144+1 -> -7 | D146: =AES -> 26.16666667 | E146: -7 | F146: =AMS -> 6.666666667 | G146: -7 | H146: =OMS -> -6.666666667 | I146: -7 | J146: =OES -> -26.16666667 | L146: =L120 -> Movement | N146: =N120+1 -> 5
C147: =C146 -> -7 | D147: =AEE -> 25.5 | E147: =E146 -> -7 | F147: =AME -> 7.333333333 | G147: =G146 -> -7 | H147: =OME -> -7.333333333 | I147: =I146 -> -7 | J147: =OEE -> -25.5 | L147: =IF(N147<>"",TRUE,FALSE) -> FALSE | M147: 1
L148: =IF(N148<>"",TRUE,FALSE) -> FALSE | M148: =M147+1 -> 2
C149: =C147+1 -> -6 | D149: =AES -> 26.16666667 | E149: =E147+1 -> -6 | F149: =AMS -> 6.666666667 | G149: =G147+1 -> -6 | H149: =OMS -> -6.666666667 | I149: =I147+1 -> -6 | J149: =OES -> -26.16666667 | L149: FALSE | M149: 3
C150: =C149 -> -6 | D150: =AEE -> 25.5 | E150: =E149 -> -6 | F150: =AME -> 7.333333333 | G150: =G149 -> -6 | H150: =OME -> -7.333333333 | I150: =I149 -> -6 | J150: =OEE -> -25.5 | L150: FALSE | M150: 4
L151: FALSE | M151: 5
C152: =C150+2 -> -4 | D152: =AES -> 26.16666667 | E152: =E150+2 -> -4 | F152: =AMS -> 6.666666667 | G152: =G150+2 -> -4 | H152: =OMS -> -6.666666667 | I152: =I150+2 -> -4 | J152: =OES -> -26.16666667 | L152: FALSE | M152: 6
C153: =C152 -> -4 | D153: =AEE -> 25.5 | E153: =E152 -> -4 | F153: =AME -> 7.333333333 | G153: =G152 -> -4 | H153: =OME -> -7.333333333 | I153: =I152 -> -4 | J153: =OEE -> -25.5 | L153: FALSE | M153: 7
L154: FALSE | M154: 8
C155: =C153+1 -> -3 | D155: =AES -> 26.16666667 | E155: -3 | F155: =AMS -> 6.666666667 | G155: -3 | H155: =OMS -> -6.666666667 | I155: -3 | J155: =OES -> -26.16666667 | L155: FALSE | M155: 9
C156: =C155 -> -3 | D156: =AEE -> 25.5 | E156: =E155 -> -3 | F156: =AME -> 7.333333333 | G156: =G155 -> -3 | H156: =OME -> -7.333333333 | I156: =I155 -> -3 | J156: =OEE -> -25.5 | L156: FALSE | M156: 10
L157: FALSE | M157: 11
C158: =C156+1 -> -2 | D158: =AES -> 26.16666667 | E158: =E156+1 -> -2 | F158: =AMS -> 6.666666667 | G158: =G156+1 -> -2 | H158: =OMS -> -6.666666667 | I158: =I156+1 -> -2 | J158: =OES -> -26.16666667 | L158: FALSE | M158: 12
C159: =C158 -> -2 | D159: =AEE -> 25.5 | E159: =E158 -> -2 | F159: =AME -> 7.333333333 | G159: =G158 -> -2 | H159: =OME -> -7.333333333 | I159: =I158 -> -2 | J159: =OEE -> -25.5 | L159: FALSE | M159: 13
L160: FALSE | M160: 14
C161: =C159+1 -> -1 | D161: =AES -> 26.16666667 | E161: =E159+1 -> -1 | F161: =AMS -> 6.666666667 | G161: =G159+1 -> -1 | H161: =OMS -> -6.666666667 | I161: =I159+1 -> -1 | J161: =OES -> -26.16666667 | L161: FALSE | M161: 15
C162: =C161 -> -1 | D162: =AEE -> 25.5 | E162: =E161 -> -1 | F162: =AME -> 7.333333333 | G162: =G161 -> -1 | H162: =OME -> -7.333333333 | I162: =I161 -> -1 | J162: =OEE -> -25.5 | L162: FALSE | M162: 16
L163: FALSE | M163: 17
C164: =C162+2 -> 1 | D164: =AES -> 26.16666667 | E164: =E162+2 -> 1 | F164: =AMS -> 6.666666667 | G164: =G162+2 -> 1 | H164: =OMS -> -6.666666667 | I164: =I162+2 -> 1 | J164: =OES -> -26.16666667 | L164: FALSE | M164: 18
C165: =C164 -> 1 | D165: =AEE -> 25.5 | E165: =E164 -> 1 | F165: =AME -> 7.333333333 | G165: =G164 -> 1 | H165: =OME -> -7.333333333 | I165: =I164 -> 1 | J165: =OEE -> -25.5 | L165: FALSE | M165: 19
L166: FALSE | M166: 20
C167: =C165+1 -> 2 | D167: =AES -> 26.16666667 | E167: 2 | F167: =AMS -> 6.666666667 | G167: 2 | H167: =OMS -> -6.666666667 | I167: 2 | J167: =OES -> -26.16666667 | L167: FALSE | M167: 21
C168: =C167 -> 2 | D168: =AEE -> 25.5 | E168: =E167 -> 2 | F168: =AME -> 7.333333333 | G168: =G167 -> 2 | H168: =OME -> -7.333333333 | I168: =I167 -> 2 | J168: =OEE -> -25.5 | L168: FALSE | M168: 22
L169: FALSE | M169: 23
C170: =C168+1 -> 3 | D170: =AES -> 26.16666667 | E170: =E168+1 -> 3 | F170: =AMS -> 6.666666667 | G170: =G168+1 -> 3 | H170: =OMS -> -6.666666667 | I170: =I168+1 -> 3 | J170: =OES -> -26.16666667 | L170: FALSE | M170: 24
C171: =C170 -> 3 | D171: =AEE -> 25.5 | E171: =E170 -> 3 | F171: =AME -> 7.333333333 | G171: =G170 -> 3 | H171: =OME -> -7.333333333 | I171: =I170 -> 3 | J171: =OEE -> -25.5 | L171: FALSE | M171: 25
L172: =L146 -> Movement | N172: =N146+1 -> 6
C173: =C171+1 -> 4 | D173: =AES -> 26.16666667 | E173: =E171+1 -> 4 | F173: =AMS -> 6.666666667 | G173: =G171+1 -> 4 | H173: =OMS -> -6.666666667 | I173: =I171+1 -> 4 | J173: =OES -> -26.16666667 | L173: =IF(N173<>"",TRUE,FALSE) -> FALSE | M173: 1
C174: =C173 -> 4 | D174: =AEE -> 25.5 | E174: =E173 -> 4 | F174: =AME -> 7.333333333 | G174: =G173 -> 4 | H174: =OME -> -7.333333333 | I174: =I173 -> 4 | J174: =OEE -> -25.5 | L174: =IF(N174<>"",TRUE,FALSE) -> FALSE | M174: =M173+1 -> 2
L175: FALSE | M175: 3
C176: =C174+2 -> 6 | D176: =AES -> 26.16666667 | E176: =E174+2 -> 6 | F176: =AMS -> 6.666666667 | G176: =G174+2 -> 6 | H176: =OMS -> -6.666666667 | I176: =I174+2 -> 6 | J176: =OES -> -26.16666667 | L176: FALSE | M176: 4
C177: =C176 -> 6 | D177: =AEE -> 25.5 | E177: =E176 -> 6 | F177: =AME -> 7.333333333 | G177: =G176 -> 6 | H177: =OME -> -7.333333333 | I177: =I176 -> 6 | J177: =OEE -> -25.5 | L177: FALSE | M177: 5
L178: FALSE | M178: 6
C179: =C177+1 -> 7 | D179: =AES -> 26.16666667 | E179: 7 | F179: =AMS -> 6.666666667 | G179: 7 | H179: =OMS -> -6.666666667 | I179: 7 | J179: =OES -> -26.16666667 | L179: FALSE | M179: 7
C180: =C179 -> 7 | D180: =AEE -> 25.5 | E180: =E179 -> 7 | F180: =AME -> 7.333333333 | G180: =G179 -> 7 | H180: =OME -> -7.333333333 | I180: =I179 -> 7 | J180: =OEE -> -25.5 | L180: FALSE | M180: 8
L181: FALSE | M181: 9
C182: =C180+1 -> 8 | D182: =AES -> 26.16666667 | E182: =E180+1 -> 8 | F182: =AMS -> 6.666666667 | G182: =G180+1 -> 8 | H182: =OMS -> -6.666666667 | I182: =I180+1 -> 8 | J182: =OES -> -26.16666667 | L182: FALSE | M182: 10
C183: =C182 -> 8 | D183: =AEE -> 25.5 | E183: =E182 -> 8 | F183: =AME -> 7.333333333 | G183: =G182 -> 8 | H183: =OME -> -7.333333333 | I183: =I182 -> 8 | J183: =OEE -> -25.5 | L183: FALSE | M183: 11
L184: FALSE | M184: 12
C185: =C183+1 -> 9 | D185: =AES -> 26.16666667 | E185: =E183+1 -> 9 | F185: =AMS -> 6.666666667 | G185: =G183+1 -> 9 | H185: =OMS -> -6.666666667 | I185: =I183+1 -> 9 | J185: =OES -> -26.16666667 | L185: FALSE | M185: 13
C186: =C185 -> 9 | D186: =AEE -> 25.5 | E186: =E185 -> 9 | F186: =AME -> 7.333333333 | G186: =G185 -> 9 | H186: =OME -> -7.333333333 | I186: =I185 -> 9 | J186: =OEE -> -25.5 | L186: FALSE | M186: 14
L187: FALSE | M187: 15
C188: =C186+2 -> 11 | D188: =AES -> 26.16666667 | E188: =E186+2 -> 11 | F188: =AMS -> 6.666666667 | G188: =G186+2 -> 11 | H188: =OMS -> -6.666666667 | I188: =I186+2 -> 11 | J188: =OES -> -26.16666667 | L188: FALSE | M188: 16
C189: =C188 -> 11 | D189: =AEE -> 25.5 | E189: =E188 -> 11 | F189: =AME -> 7.333333333 | G189: =G188 -> 11 | H189: =OME -> -7.333333333 | I189: =I188 -> 11 | J189: =OEE -> -25.5 | L189: FALSE | M189: 17
L190: FALSE | M190: 18
C191: =C189+1 -> 12 | D191: =AES -> 26.16666667 | E191: 12 | F191: =AMS -> 6.666666667 | G191: 12 | H191: =OMS -> -6.666666667 | I191: 12 | J191: =OES -> -26.16666667 | L191: FALSE | M191: 19
C192: =C191 -> 12 | D192: =AEE -> 25.5 | E192: =E191 -> 12 | F192: =AME -> 7.333333333 | G192: =G191 -> 12 | H192: =OME -> -7.333333333 | I192: =I191 -> 12 | J192: =OEE -> -25.5 | L192: FALSE | M192: 20
L193: FALSE | M193: 21
C194: =C192+1 -> 13 | D194: =AES -> 26.16666667 | E194: =E192+1 -> 13 | F194: =AMS -> 6.666666667 | G194: =G192+1 -> 13 | H194: =OMS -> -6.666666667 | I194: =I192+1 -> 13 | J194: =OES -> -26.16666667 | L194: FALSE | M194: 22
C195: =C194 -> 13 | D195: =AEE -> 25.5 | E195: =E194 -> 13 | F195: =AME -> 7.333333333 | G195: =G194 -> 13 | H195: =OME -> -7.333333333 | I195: =I194 -> 13 | J195: =OEE -> -25.5 | L195: FALSE | M195: 23
L196: FALSE | M196: 24
C197: =C195+1 -> 14 | D197: =AES -> 26.16666667 | E197: =E195+1 -> 14 | F197: =AMS -> 6.666666667 | G197: =G195+1 -> 14 | H197: =OMS -> -6.666666667 | I197: =I195+1 -> 14 | J197: =OES -> -26.16666667 | L197: FALSE | M197: 25
C198: =C197 -> 14 | D198: =AEE -> 25.5 | E198: =E197 -> 14 | F198: =AME -> 7.333333333 | G198: =G197 -> 14 | H198: =OME -> -7.333333333 | I198: =I197 -> 14 | J198: =OEE -> -25.5 | L198: =L172 -> Movement | N198: =N172+1 -> 7
L199: =IF(N199<>"",TRUE,FALSE) -> FALSE | M199: 1
C200: =C198+2 -> 16 | D200: =AES -> 26.16666667 | E200: =E198+2 -> 16 | F200: =AMS -> 6.666666667 | G200: =G198+2 -> 16 | H200: =OMS -> -6.666666667 | I200: =I198+2 -> 16 | J200: =OES -> -26.16666667 | L200: =IF(N200<>"",TRUE,FALSE) -> FALSE | M200: =M199+1 -> 2
C201: =C200 -> 16 | D201: =AEE -> 25.5 | E201: =E200 -> 16 | F201: =AME -> 7.333333333 | G201: =G200 -> 16 | H201: =OME -> -7.333333333 | I201: =I200 -> 16 | J201: =OEE -> -25.5 | L201: FALSE | M201: 3
L202: FALSE | M202: 4
C203: =C201+1 -> 17 | D203: =AES -> 26.16666667 | E203: 17 | F203: =AMS -> 6.666666667 | G203: 17 | H203: =OMS -> -6.666666667 | I203: 17 | J203: =OES -> -26.16666667 | L203: FALSE | M203: 5
C204: =C203 -> 17 | D204: =AEE -> 25.5 | E204: =E203 -> 17 | F204: =AME -> 7.333333333 | G204: =G203 -> 17 | H204: =OME -> -7.333333333 | I204: =I203 -> 17 | J204: =OEE -> -25.5 | L204: FALSE | M204: 6
L205: FALSE | M205: 7
C206: =C204+1 -> 18 | D206: =AES -> 26.16666667 | E206: =E204+1 -> 18 | F206: =AMS -> 6.666666667 | G206: =G204+1 -> 18 | H206: =OMS -> -6.666666667 | I206: =I204+1 -> 18 | J206: =OES -> -26.16666667 | L206: FALSE | M206: 8
... 95 more rows

Sheet Alt_Chart
T4: Yardage Markers
T5: Visitor Numbers | U5: X-Value | V5: Y-Value | X5: Home Numbers | Y5: X-Value | Z5: Y-Value
T6: 10 | U6: =-HalfWid+8 -> -18.66666667 | V6: 39.7 | X6: 10 | Y6: =HalfWid-8 -> 18.66666667 | Z6: 40.2
T7: 20 | U7: -18.66666667 | V7: 29.8 | X7: 20 | Y7: =Y6 -> 18.66666667 | Z7: 30.2
T8: 30 | U8: -18.66666667 | V8: 19.8 | X8: 30 | Y8: =Y7 -> 18.66666667 | Z8: 20.2
T9: 40 | U9: -18.66666667 | V9: 9.8 | X9: 40 | Y9: 18.66666667 | Z9: 10
T10: 50 | U10: -18.66666667 | V10: -0.2 | X10: 50 | Y10: 18.66666667 | Z10: 0.1
T11: 40 | U11: -18.66666667 | V11: -10.3 | X11: 40 | Y11: 18.66666667 | Z11: -9.9
T12: 30 | U12: -18.66666667 | V12: -20.3 | X12: 30 | Y12: 18.66666667 | Z12: -19.9
T13: 20 | U13: -18.66666667 | V13: -30.3 | X13: 20 | Y13: 18.66666667 | Z13: -29.8
T14: 10 | U14: -18.66666667 | V14: -40.3 | X14: 10 | Y14: 18.66666667 | Z14: -39.7
T18: Movement Indicator
T19: =" ** Movement " & MoveChart & " **" -> ** Movement 2 **
T20: x | U20: y
T21: 22 | U21: -43
